bitfinex/quotes_BTCUSD_20240715
["timestamp","ask_amount","ask_price","bid_price","bid_amount"]
[1721030639462,0.09732207,62953.0,62952.0,0.14938447]
[1721030639877,0.09732961,62953.0,62952.0,0.0771]
[1721030640076,0.09732961,62953.0,62952.0,0.0701]
[1721030640284,0.09732961,62953.0,62952.0,0.14238447]
[1721030640439,0.09832961,62953.0,62952.0,0.15138447]
[1721030641605,0.55121052,62953.0,62952.0,0.018]
[1721030641806,1.34285008,62953.0,62952.0,0.018]
[1721030642139,1.34285008,62953.0,62952.0,9.5e-07]
[1721030642140,1.62877708,62953.0,62952.0,9.5e-07]
[1721030642468,1.34285008,62953.0,62952.0,9.5e-07]
[1721030642675,0.69017451,62953.0,62952.0,9.5e-07]
[1721030642884,0.80870877,62953.0,62952.0,9.5e-07]
[1721030643097,0.80670877,62953.0,62948.0,0.009185]
[1721030643296,0.07112107,62950.0,62948.0,0.009185]
[1721030643475,0.44037451,62949.0,62948.0,0.009185]
[1721030643699,0.54037451,62949.0,62948.0,0.009185]
[1721030644030,0.48820923,62949.0,62948.0,0.009185]
[1721030644357,0.44080463,62949.0,62948.0,0.010185]
[1721030644558,0.34080463,62949.0,62948.0,0.08246947]
[1721030644693,0.19268672,62949.0,62948.0,0.08246947]
[1721030644916,0.11097862,62949.0,62948.0,0.08246947]
[1721030645095,0.11097862,62949.0,62948.0,0.22406947]
[1721030645562,0.11997862,62949.0,62948.0,0.22506947]
[1721030646120,0.10597862,62949.0,62948.0,0.22406947]
[1721030646526,0.11597862,62949.0,62948.0,0.22406947]
[1721030646757,0.10697862,62949.0,62948.0,0.22306947]
[1721030647135,0.11597862,62949.0,62948.0,0.22406947]
[1721030648823,0.11597862,62949.0,62948.0,0.151785]
[1721030648965,0.08334516,62949.0,62948.0,0.22406947]
[1721030649165,0.11546066,62949.0,62948.0,0.22406947]
[1721030650531,0.11546066,62949.0,62948.0,0.072685]
[1721030650823,0.11546066,62949.0,62948.0,0.14496947]
[1721030652021,0.11546066,62949.0,62948.0,0.34496947]
[1721030652226,0.019,62949.0,62948.0,0.48206947]
[1721030652621,0.019,62949.0,62948.0,0.485133]
[1721030653201,0.00083,62953.0,62952.0,0.12]
[1721030653435,0.00083,62953.0,62952.0,0.26828447]
[1721030653627,0.03284005,62953.0,62952.0,0.26828447]
[1721030653866,0.03284005,62953.0,62952.0,0.27146122]
[1721030654076,0.00083,62953.0,62952.0,1.16554066]
[1721030654322,0.04963238,62965.0,62964.0,0.32]
[1721030654468,0.09642522,62965.0,62964.0,0.47228447]
[1721030655088,0.000671,62975.0,62974.0,0.21768447]
[1721030655299,0.03277305,62975.0,62974.0,0.21768447]
[1721030655683,0.09710132,62975.0,62974.0,0.21768447]
[1721030657769,0.11110132,62975.0,62974.0,0.21868447]
[1721030657991,0.12510132,62975.0,62974.0,0.21968447]
[1721030658436,0.0924923,62975.0,62974.0,0.21968447]
[1721030658613,0.11050468,62975.0,62974.0,0.21868447]
[1721030658849,0.04668076,62975.0,62974.0,0.21868447]
[1721030659129,0.04668076,62975.0,62974.0,0.21768447]
[1721030659384,0.03268076,62975.0,62974.0,0.21768447]
[1721030660238,0.03268076,62975.0,62974.0,0.27768447]
[1721030660452,0.000671,62975.0,62974.0,0.27768447]
[1721030660627,0.000671,62975.0,62974.0,0.27868447]
[1721030664634,0.000671,62975.0,62974.0,0.27768447]
[1721030664835,0.001671,62975.0,62974.0,0.28668447]
[1721030666037,0.002671,62975.0,62974.0,0.29368447]
[1721030668605,0.002671,62975.0,62974.0,1.08668447]
[1721030668815,0.002671,62975.0,62974.0,0.69018447]
[1721030669027,0.002671,62975.0,62974.0,0.29368447]
[1721030669206,0.002671,62975.0,62974.0,0.29685965]
[1721030670329,0.002671,62975.0,62974.0,1.08985965]
[1721030674812,0.002671,62975.0,62974.0,1.96219356]
[1721030675012,0.002671,62975.0,62974.0,2.26785038]
[1721030675219,0.002671,62975.0,62974.0,2.55368238]
[1721030676805,0.002671,62975.0,62974.0,2.92056676]
[1721030676937,0.002671,62975.0,62974.0,2.22756676]
[1721030677569,0.00084,62984.0,62983.0,1.785186]
[1721030677776,0.00084,62984.0,62983.0,2.20808838]
[1721030678206,0.00084,62984.0,62983.0,2.94697038]
[1721030678403,0.00084,62984.0,62983.0,3.80990276]
[1721030679011,0.00084,62984.0,62983.0,3.90990276]
[1721030680438,0.00084,62984.0,62983.0,3.92390276]
[1721030681218,0.00084,62984.0,62983.0,3.93790276]
[1721030685257,0.00084,62984.0,62983.0,4.00149576]
[1721030687719,0.00084,62984.0,62983.0,4.28728676]
[1721030688023,0.00084,62984.0,62983.0,3.27037178]
[1721030688488,0.00084,62984.0,62983.0,3.55616278]
[1721030688629,0.00084,62984.0,62983.0,3.54216278]
[1721030688835,0.00084,62984.0,62983.0,3.54214544]
[1721030689070,0.00084,62984.0,62983.0,3.55614544]
[1721030689930,0.00084,62984.0,62983.0,3.54214544]
[1721030690155,0.00084,62984.0,62983.0,3.55614544]
[1721030690369,0.00084,62984.0,62983.0,3.92464544]
[1721030690569,0.00083,63003.0,63002.0,0.82]
[1721030690955,0.00083,63003.0,63002.0,0.97208447]
[1721030691153,0.00083,63003.0,63002.0,1.07208447]
[1721030691892,0.00083,63003.0,63002.0,1.21493647]
[1721030692099,0.00083,63003.0,63002.0,0.99258447]
[1721030692851,0.00083,63003.0,63002.0,0.93228447]
[1721030693063,0.06723,63003.0,63002.0,0.43628447]
[1721030693258,0.06723,63003.0,63002.0,0.37628447]
[1721030693454,0.06723,63003.0,63002.0,0.44128447]
[1721030696695,0.00083,63003.0,63002.0,0.44128447]
[1721030697609,0.00083,63003.0,63002.0,0.83778447]
[1721030697813,0.00083,63003.0,63002.0,0.38128447]
[1721030698019,0.00083,63003.0,63002.0,0.44128447]
[1721030699611,0.00083,63003.0,63002.0,0.50486847]
[1721030699835,0.00083,63003.0,63002.0,0.44486847]
[1721030700050,0.00083,63003.0,63002.0,0.44128447]
[1721030700256,0.00083,63003.0,63002.0,0.38128447]
[1721030700431,0.00083,63003.0,63002.0,0.44128447]
[1721030700650,0.00083,63003.0,63002.0,0.309]
[1721030701026,0.00083,63003.0,63002.0,0.28128447]
[1721030701205,0.14293,63003.0,63002.0,0.28128447]
[1721030703036,0.14293,63003.0,63002.0,0.27728447]
[1721030703207,0.14293,63003.0,63002.0,0.27828447]
[1721030703906,0.14293,63003.0,63002.0,0.27328447]
[1721030704147,0.14293,63003.0,63002.0,0.27628447]
[1721030704387,0.17449689,63003.0,63002.0,0.004]
[1721030704579,0.39185175,63003.0,63002.0,0.004]
[1721030704724,0.39185175,63003.0,63002.0,0.001]
[1721030704926,0.47140193,63003.0,63002.0,0.001]
[1721030705125,0.47140193,63003.0,63002.0,0.004]
[1721030705828,0.47140193,63003.0,63002.0,0.001]
[1721030706042,0.063,63002.0,62990.0,0.07228447]
[1721030706192,0.063,62999.0,62988.0,0.07228447]
[1721030706395,0.142857,63000.0,62989.0,0.07228447]
[1721030706396,0.0821,62995.0,62989.0,0.07228447]
[1721030706643,0.0639,62993.0,62992.0,0.07228447]
[1721030706854,0.15070384,62993.0,62992.0,0.07228447]
[1721030707397,0.23298327,62993.0,62992.0,0.07228447]
[1721030707618,0.23428291,62993.0,62992.0,0.07228447]
[1721030708655,0.17774632,62993.0,62992.0,0.07228447]
[1721030709001,0.23414312,62993.0,62992.0,0.07428447]
[1721030709202,0.23423145,62993.0,62992.0,0.07428447]
[1721030709425,0.17774632,62993.0,62992.0,0.07428447]
[1721030710033,0.23414012,62993.0,62992.0,0.07428447]
[1721030710379,0.17770891,62993.0,62992.0,0.07428447]
[1721030710784,0.146,62993.0,62992.0,0.07428447]
[1721030710986,0.1777009,62993.0,62992.0,0.07428447]
[1721030711204,0.1138009,62993.0,62992.0,0.07428447]
[1721030713579,0.0821,62993.0,62992.0,0.07428447]
[1721030713757,0.11378246,62993.0,62992.0,0.07428447]
[1721030716945,0.0821,62993.0,62992.0,0.07428447]
[1721030718839,0.0821,62993.0,62992.0,0.13428447]
[1721030719054,0.04966474,63001.0,63000.0,0.07228447]
[1721030719533,0.00083,63003.0,62994.0,0.2]
[1721030719534,0.00083,63003.0,63002.0,0.33228447]
[1721030719726,0.00083,63003.0,63002.0,0.33545858]
[1721030719965,0.00083,63003.0,63002.0,0.33228447]
[1721030720430,0.00083,63003.0,63002.0,0.39358447]
[1721030720860,0.00083,63003.0,63002.0,0.27228447]
[1721030721073,0.00083,63003.0,63002.0,0.33545847]
[1721030721283,0.00083,63003.0,63002.0,0.34145847]
[1721030721723,0.00083,63003.0,63002.0,0.33945847]
[1721030723311,0.00083,63003.0,63002.0,0.34445847]
[1721030726354,0.00083,63003.0,63002.0,0.34295847]
[1721030726762,0.00083,63003.0,63002.0,0.33795847]
[1721030727199,0.00083,63003.0,63002.0,0.33995847]
[1721030727560,0.00083,63003.0,63002.0,0.34495847]
[1721030731673,0.00083,63003.0,63002.0,0.3505832]
[1721030731882,0.00083,63003.0,63002.0,0.4913832]
[1721030732863,0.00083,63003.0,63002.0,0.6913832]
[1721030733036,0.00083,63003.0,63002.0,1.69076311]
[1721030733273,0.00083,63003.0,63002.0,0.4085092]
[1721030733570,0.00083,63003.0,63002.0,0.4882092]
[1721030734465,0.00083,63003.0,63002.0,0.5812092]
[1721030734672,0.00083,63003.0,63002.0,0.4404092]
[1721030734890,0.00083,63003.0,63002.0,0.3474092]
[1721030736185,0.00083,63003.0,63002.0,0.35058339]
[1721030736957,0.00083,63003.0,63002.0,0.49858339]
[1721030738938,0.00083,63003.0,63002.0,0.84143539]
[1721030739137,0.00083,63003.0,63002.0,0.64143539]
[1721030739343,0.00083,63003.0,63002.0,0.49858339]
[1721030741356,0.00083,63003.0,63002.0,1.0892583]
[1721030741555,0.00083,63003.0,63002.0,1.1122583]
[1721030742558,0.00083,63003.0,63002.0,0.8265533]
[1721030742768,0.00083,63003.0,63002.0,0.82337911]
[1721030743580,0.00083,63003.0,63002.0,0.74177911]
[1721030745815,0.00083,63003.0,63002.0,1.02748411]
[1721030746281,0.00083,63003.0,63002.0,1.22748411]
[1721030746754,0.00083,63003.0,63002.0,1.30668411]
[1721030747535,0.00083,63003.0,63002.0,1.40668411]
[1721030748670,0.00083,63003.0,63002.0,1.69238911]
[1721030751758,0.00083,63003.0,63002.0,1.69330211]
[1721030752202,0.00083,63003.0,63002.0,1.79330211]
[1721030752377,0.00083,63003.0,63002.0,2.24640711]
[1721030752587,0.00083,63003.0,63002.0,2.47818428]
[1721030754432,0.00083,63003.0,63002.0,2.14739981]
[1721030754941,0.00083,63003.0,63002.0,2.47818428]
[1721030755809,0.00083,63003.0,63002.0,2.47817614]
[1721030756358,0.00083,63003.0,63002.0,2.57107614]
[1721030756969,0.00083,63003.0,63002.0,1.32839711]
[1721030757149,0.00083,63003.0,63002.0,1.37629211]
[1721030757506,0.00083,63003.0,63002.0,1.46919211]
[1721030757668,0.00083,63003.0,63002.0,1.85489711]
[1721030757870,0.00083,63003.0,63002.0,1.55489711]
[1721030758073,0.00083,63003.0,63002.0,1.75489711]
[1721030758432,0.00083,63003.0,63002.0,0.5483222]
[1721030759910,0.00083,63003.0,63002.0,0.4483222]
[1721030760108,0.14463,63003.0,63002.0,0.01753773]
[1721030760368,0.4453312,63003.0,63002.0,0.02173838]
[1721030760549,0.54535593,63003.0,63002.0,0.0260056]
[1721030760750,0.62640831,63003.0,63002.0,0.011913]
[1721030760954,0.62640831,63003.0,62994.0,0.00019109]
[1721030760955,0.0015,62999.0,62994.0,0.00019109]
[1721030761093,0.0015,62999.0,62990.0,0.07078447]
[1721030761094,0.0015,62990.0,62984.0,0.000913]
[1721030761326,0.22945238,62985.0,62984.0,0.000913]
[1721030761509,0.31704993,62985.0,62984.0,0.07169747]
[1721030761715,0.31704993,62985.0,62984.0,0.000913]
[1721030761716,0.29512222,62985.0,62984.0,0.000913]
[1721030761918,0.29667365,62985.0,62984.0,0.000913]
[1721030762383,0.21703569,62985.0,62984.0,0.000913]
[1721030762587,0.21703569,62985.0,62984.0,0.001913]
[1721030762788,0.21703569,62985.0,62984.0,0.000913]
[1721030763016,0.21703569,62985.0,62984.0,0.001913]
[1721030763190,0.21703569,62985.0,62984.0,0.002913]
[1721030763575,0.21703569,62985.0,62984.0,0.001913]
[1721030763939,0.22303569,62985.0,62984.0,0.002913]
[1721030764477,0.3791536,62985.0,62984.0,0.001913]
[1721030764660,0.80926016,62985.0,62984.0,0.000913]
[1721030764874,0.81826016,62985.0,62984.0,0.001913]
[1721030765071,0.61215642,62985.0,62984.0,0.001913]
[1721030765264,0.53251816,62985.0,62984.0,0.001913]
[1721030765467,1.10408216,62985.0,62984.0,0.001913]
[1721030765621,1.28376823,62985.0,62984.0,0.002913]
[1721030765823,1.29276823,62985.0,62984.0,0.002913]
[1721030766174,1.50906823,62985.0,62984.0,0.001913]
[1721030766395,0.0763,62975.0,62969.0,0.2]
[1721030766792,0.0763,62975.0,62969.0,0.27078447]
[1721030766912,0.0763,62975.0,62973.0,0.07078447]
[1721030767113,0.0763,62975.0,62974.0,0.08581097]
[1721030768414,0.0843,62975.0,62974.0,0.08581097]
[1721030768966,0.09434,62975.0,62974.0,0.08581097]
[1721030769975,0.08634,62975.0,62974.0,0.08581097]
[1721030770531,0.09534,62975.0,62974.0,0.08681097]
[1721030770893,0.09534,62975.0,62974.0,0.0160265]
[1721030775534,0.09534,62975.0,62974.0,0.08681097]
[1721030775968,0.09534,62975.0,62974.0,0.0160265]
[1721030779355,0.09534,62975.0,62974.0,0.08681097]
[1721030780928,0.09534,62975.0,62974.0,0.0160265]
[1721030781127,0.09534,62975.0,62974.0,0.08681097]
[1721030781552,0.09534,62975.0,62974.0,0.0160265]
[1721030783236,0.09534,62975.0,62974.0,0.08681097]
[1721030784408,0.09534,62975.0,62974.0,0.0169395]
[1721030786143,0.8544217,62975.0,62974.0,0.0169395]
[1721030786479,0.8544217,62975.0,62957.0,0.00251098]
[1721030786480,0.0752,62962.0,62957.0,0.00251098]
[1721030786672,0.142949,62960.0,62955.0,0.07078447]
[1721030786879,0.1953166,62959.0,62958.0,0.0107452]
[1721030787083,0.26374218,62959.0,62955.0,0.07078447]
[1721030787291,0.26374218,62959.0,62953.0,0.0965954]
[1721030787292,0.10211819,62958.0,62953.0,0.0965954]
[1721030787494,0.2642361,62957.0,62953.0,0.0965954]
[1721030787718,0.16211791,62957.0,62953.0,0.02581093]
[1721030787903,0.730884,62954.0,62953.0,0.02581093]
[1721030788113,1.28103463,62954.0,62953.0,0.000913]
[1721030788528,1.09361163,62954.0,62953.0,0.000913]
[1721030789144,1.19652214,62954.0,62953.0,0.000913]
[1721030789368,1.09361163,62954.0,62953.0,0.000913]
[1721030789559,0.80768863,62954.0,62953.0,0.000913]
[1721030790329,0.77416318,62954.0,62953.0,0.000913]
[1721030790530,0.80756674,62954.0,62953.0,0.000913]
[1721030790766,0.82060674,62954.0,62953.0,0.000913]
[1721030790967,0.83060674,62954.0,62953.0,0.000913]
[1721030791564,0.46234574,62954.0,62953.0,0.000913]
[1721030792660,0.68764574,62954.0,62953.0,0.000913]
[1721030792859,0.83210674,62954.0,62953.0,0.000913]
[1721030793154,0.68764574,62954.0,62953.0,0.000913]
[1721030793362,0.46234574,62954.0,62953.0,0.000913]
[1721030793565,0.46242054,62954.0,62953.0,0.000913]
[1721030794097,0.54219237,62954.0,62953.0,0.000913]
[1721030794643,0.36242054,62954.0,62953.0,0.07169747]
[1721030795050,0.29377781,62954.0,62953.0,0.000913]
[1721030795413,0.36277408,62954.0,62953.0,0.000913]
[1721030796041,0.36277408,62954.0,62953.0,0.07169747]
[1721030796345,0.21857781,62954.0,62953.0,0.07169747]
[1721030796561,0.28734843,62954.0,62953.0,0.000913]
[1721030796804,0.25392853,62954.0,62953.0,0.000913]
[1721030796982,0.28737778,62954.0,62953.0,0.000913]
[1721030798135,0.21860716,62954.0,62953.0,0.07169747]
[1721030798376,0.21860716,62954.0,62953.0,0.000913]
[1721030798805,0.21860716,62954.0,62953.0,0.08254351]
[1721030799003,0.21860716,62954.0,62953.0,0.01175904]
[1721030800113,0.21863808,62954.0,62953.0,0.01175904]
[1721030800301,0.21863808,62954.0,62953.0,0.08254351]
[1721030800528,0.18515791,62954.0,62953.0,0.08254351]
[1721030800722,0.21866332,62954.0,62953.0,0.08254351]
[1721030801843,0.05654541,62954.0,62953.0,0.01175904]
[1721030803249,0.12545412,62954.0,62953.0,0.01175904]
[1721030803445,0.12545467,62954.0,62953.0,0.01175904]
[1721030804449,0.12545467,62954.0,62953.0,0.000913]
[1721030805170,0.20523362,62954.0,62953.0,0.000913]
[1721030806346,0.12545467,62954.0,62953.0,0.000913]
[1721030806557,0.05646937,62954.0,62953.0,0.000913]
[1721030806680,0.05646937,62954.0,62953.0,0.0117544]
[1721030806881,0.12498859,62954.0,62953.0,0.0117544]
[1721030807532,0.20477712,62954.0,62953.0,0.0117544]
[1721030807845,0.12498859,62954.0,62953.0,0.0117544]
[1721030808647,0.12498859,62954.0,62953.0,0.20893887]
[1721030808992,0.02304,62954.0,62953.0,1.49994678]
[1721030809291,0.02304,62954.0,62953.0,1.03701978]
[1721030809508,4e-05,62954.0,62953.0,0.58121793]
[1721030809725,4e-05,62954.0,62953.0,0.20893887]
[1721030809931,0.00204,62954.0,62953.0,0.21211515]
[1721030810162,0.00604,62954.0,62953.0,0.21517868]
[1721030810361,0.00604,62954.0,62953.0,0.2120024]
[1721030810578,0.00204,62954.0,62953.0,0.2120024]
[1721030810717,0.00204,62954.0,62953.0,0.2130024]
[1721030810920,0.00184891,62954.0,62953.0,0.2130024]
[1721030811680,0.00184891,62954.0,62953.0,0.20993887]
[1721030811835,0.12982893,62974.0,62953.0,0.2130024]
[1721030812038,0.34364951,62973.0,62969.0,0.07078447]
[1721030812222,0.10177069,62972.0,62969.0,0.07078447]
[1721030812427,0.2638886,62971.0,62970.0,0.01159776]
[1721030812828,0.16211791,62971.0,62967.0,0.07078447]
[1721030813028,0.1010804,62970.0,62964.0,0.07078447]
[1721030813278,0.1010804,62970.0,62956.0,0.2]
[1721030813279,0.1010804,62969.0,62968.0,0.01160948]
[1721030813560,0.26287056,62969.0,62963.0,0.07078447]
[1721030813684,0.10075265,62968.0,62967.0,0.07078447]
[1721030814132,0.10075265,62968.0,62967.0,0.0833998]
[1721030815630,0.10075265,62968.0,62967.0,0.01161533]
[1721030815836,0.10075265,62968.0,62967.0,0.0833998]
[1721030816044,0.014,62969.0,62967.0,0.0833998]
[1721030816246,0.014,62969.0,62968.0,0.07078447]
[1721030816444,0.08157891,62969.0,62968.0,0.07078447]
[1721030816695,0.11567954,62969.0,62968.0,0.08239395]
[1721030816904,0.10167954,62969.0,62968.0,0.08239395]
[1721030817427,0.03410063,62969.0,62968.0,0.08239395]
[1721030817602,0.04810063,62969.0,62968.0,0.08339395]
[1721030819220,0.04810063,62969.0,62968.0,0.08439395]
[1721030819456,0.13004549,62969.0,62968.0,0.08439395]
[1721030819622,0.06210063,62969.0,62968.0,0.08439395]
[1721030819783,0.1300459,62969.0,62968.0,0.08439395]
[1721030820183,0.06210063,62969.0,62968.0,0.08439395]
[1721030820590,0.13013557,62969.0,62968.0,0.08439395]
[1721030820787,0.06210063,62969.0,62968.0,0.08439395]
[1721030821106,0.06210063,62969.0,62968.0,0.28549395]
[1721030821302,0.02883,62969.0,62968.0,0.28549395]
[1721030821511,0.02883,62969.0,62968.0,0.22549395]
[1721030821781,0.02883,62969.0,62968.0,0.28549395]
[1721030822292,0.01483,62969.0,62968.0,0.28449395]
[1721030822490,0.00083,62969.0,62968.0,0.28349395]
[1721030822689,0.01183,62969.0,62968.0,0.28549395]
[1721030822895,0.02083,62969.0,62968.0,0.28549395]
[1721030828969,0.02083,62969.0,62968.0,0.28866977]
[1721030830177,0.02083,62969.0,62968.0,1.17957568]
[1721030830381,0.02083,62969.0,62968.0,1.20563921]
[1721030830686,0.02083,62969.0,62968.0,1.30257568]
[1721030831314,0.02083,62969.0,62968.0,3.04465806]
[1721030831521,0.02083,62969.0,62968.0,1.68843468]
[1721030831718,0.02083,62969.0,62968.0,1.97429368]
[1721030831938,0.01183,62969.0,62968.0,3.59691706]
[1721030832282,0.01183,62969.0,62968.0,3.60291706]
[1721030832283,0.00183,62969.0,62968.0,3.60291706]
[1721030832462,0.00283,62969.0,62968.0,3.32305806]
[1721030832671,0.00283,62969.0,62968.0,3.15554577]
[1721030832884,0.00083,62969.0,62968.0,3.13948224]
[1721030833083,0.00183,62969.0,62968.0,3.14848224]
[1721030833292,0.00283,62969.0,62968.0,3.15648224]
[1721030835164,0.00283,62969.0,62968.0,2.95648224]
[1721030835546,0.00283,62969.0,62968.0,3.45954577]
[1721030835728,0.00283,62969.0,62968.0,1.88489877]
[1721030835921,0.00283,62969.0,62968.0,1.46021733]
[1721030836162,0.00283,62969.0,62968.0,0.40049395]
[1721030836324,0.00283,62969.0,62968.0,0.32369395]
[1721030838869,0.00283,62969.0,62968.0,1.77991733]
[1721030839106,0.00283,62969.0,62968.0,0.72069395]
[1721030839411,0.00283,62969.0,62968.0,0.65639395]
[1721030841085,0.00234065,62969.0,62968.0,0.65639395]
[1721030844273,0.00234065,62969.0,62968.0,1.49171733]
[1721030845508,0.00234065,62969.0,62968.0,1.65383524]
[1721030845710,0.00234065,62969.0,62968.0,2.47102324]
[1721030845914,0.00234065,62969.0,62968.0,1.12179986]
[1721030846347,0.00234065,62969.0,62968.0,1.32486339]
[1721030846544,0.00234065,62969.0,62968.0,1.12486339]
[1721030847640,0.00234065,62969.0,62968.0,1.32486339]
[1721030847817,0.00234065,62969.0,62968.0,1.32179986]
[1721030848018,0.00234065,62969.0,62968.0,1.12179986]
[1721030848269,0.00234065,62969.0,62968.0,1.12486339]
[1721030848423,0.00234065,62969.0,62968.0,1.32486339]
[1721030848805,0.00234065,62969.0,62968.0,0.59301186]
[1721030849010,0.00234065,62969.0,62968.0,0.44451186]
[1721030849275,0.00234065,62969.0,62968.0,0.44757539]
[1721030849634,0.00234065,62969.0,62968.0,0.75457539]
[1721030850957,0.00234065,62969.0,62968.0,1.90379877]
[1721030851334,0.00234065,62969.0,62968.0,1.90073524]
[1721030854112,0.00234065,62969.0,62968.0,0.34757539]
[1721030854246,0.00234065,62969.0,62968.0,0.44757539]
[1721030855451,0.00234065,62969.0,62968.0,0.59050439]
[1721030855671,0.00234065,62969.0,62968.0,0.85034086]
[1721030857309,0.00234065,62969.0,62968.0,0.85340439]
[1721030858103,0.00234065,62969.0,62968.0,2.30962777]
[1721030858525,0.00234065,62969.0,62968.0,2.28662777]
[1721030858856,0.00234065,62969.0,62968.0,3.05894577]
[1721030859008,0.00234065,62969.0,62968.0,3.15588224]
[1721030859408,0.00234065,62969.0,62968.0,3.61863707]
[1721030859610,0.00234065,62969.0,62968.0,3.80405736]
[1721030859810,0.00234065,62969.0,62968.0,4.51327985]
[1721030860336,0.00234065,62969.0,62968.0,4.51327947]
[1721030860940,0.00234065,62969.0,62968.0,4.16124188]
[1721030861139,0.00034065,62969.0,62968.0,4.14424188]
[1721030861347,0.00234065,62969.0,62968.0,4.03334572]
[1721030861548,0.00234065,62969.0,62968.0,3.56556533]
[1721030861754,0.00234065,62969.0,62968.0,2.58556275]
[1721030861957,0.00234065,62969.0,62968.0,2.40865886]
[1721030864043,0.00234065,62969.0,62968.0,2.20865886]
[1721030864834,0.00234065,62969.0,62968.0,2.40865886]
[1721030868647,0.00234065,62969.0,62968.0,3.86488224]
[1721030869051,0.00214951,62969.0,62968.0,3.86488224]
[1721030870605,0.00214951,62969.0,62968.0,4.31814124]
[1721030870752,0.00214951,62969.0,62968.0,3.06300355]
[1721030871306,0.00214951,62969.0,62968.0,3.06300857]
[1721030871526,0.00214951,62969.0,62968.0,3.56844484]
[1721030872033,0.00214951,62969.0,62968.0,3.56844555]
[1721030872823,0.00214951,62969.0,62968.0,3.78292128]
[1721030874213,0.00214951,62969.0,62968.0,3.8781027]
[1721030874432,0.00214951,62969.0,62968.0,3.72381319]
[1721030875232,0.00214951,62969.0,62968.0,3.628636]
[1721030875432,0.00214951,62969.0,62968.0,4.67081319]
[1721030875635,4e-05,62975.0,62968.0,4.67081319]
[1721030875636,4e-05,62975.0,62974.0,1.69859647]
[1721030875860,4e-05,62975.0,62974.0,3.11780552]
[1721030876035,4e-05,62975.0,62974.0,3.12930875]
[1721030877287,4e-05,62975.0,62974.0,3.22442408]
[1721030877582,4e-05,62975.0,62974.0,3.10955969]
[1721030877842,4e-05,62975.0,62974.0,3.14312848]
[1721030878050,4e-05,62975.0,62974.0,3.26200513]
[1721030878253,4e-05,62975.0,62974.0,3.23822904]
[1721030878455,4e-05,62975.0,62974.0,3.07128244]
[1721030879018,4e-05,62975.0,62974.0,3.14260916]
[1721030879217,4e-05,62975.0,62974.0,2.71929883]
[1721030879423,4e-05,62975.0,62974.0,3.14262702]
[1721030879785,4e-05,62975.0,62974.0,2.71929883]
[1721030879978,4e-05,62975.0,62974.0,2.7906143]
[1721030880611,4e-05,62975.0,62974.0,2.79045758]
[1721030880812,4e-05,62975.0,62974.0,3.14245643]
[1721030881016,4e-05,62975.0,62974.0,2.79045758]
[1721030881559,4e-05,62975.0,62974.0,3.14245643]
[1721030882070,4e-05,62975.0,62974.0,2.79045758]
[1721030882456,4e-05,62975.0,62974.0,2.71914241]
[1721030883037,4e-05,62975.0,62974.0,3.07114005]
[1721030883262,4e-05,62975.0,62974.0,3.35694869]
[1721030883434,0.00087,62975.0,62974.0,3.35550039]
[1721030883592,0.00087,62975.0,62974.0,3.45053815]
[1721030883778,0.00087,62975.0,62974.0,3.35550039]
[1721030883982,0.00087,62975.0,62974.0,3.45053753]
[1721030884203,0.00087,62975.0,62974.0,3.35550039]
[1721030885052,0.00087,62975.0,62974.0,3.45052847]
[1721030885254,0.00087,62975.0,62974.0,3.35550447]
[1721030886015,0.00087,62975.0,62974.0,3.45053255]
[1721030886423,0.00087,62975.0,62974.0,3.35580254]
[1721030888550,0.04908683,62985.0,62983.0,2.54355247]
[1721030888755,0.04908683,62985.0,62983.0,3.8193292]
[1721030889011,4e-05,62985.0,62983.0,3.92575066]
[1721030889160,4e-05,62985.0,62983.0,3.8307555]
[1721030889577,4e-05,62985.0,62983.0,3.35118768]
[1721030889783,4e-05,62985.0,62983.0,3.92569343]
[1721030889992,4e-05,62985.0,62983.0,3.36518768]
[1721030890194,4e-05,62985.0,62983.0,3.94030494]
[1721030890398,0.04960096,62998.0,62997.0,1.23078447]
[1721030890621,0.04960096,62998.0,62997.0,2.23419238]
[1721030890822,0.07753,63003.0,63002.0,0.84103647]
[1721030890823,0.00083,63003.0,63002.0,0.84103647]
[1721030891148,0.00083,63003.0,63002.0,1.42316027]
[1721030891500,0.00083,63003.0,63002.0,1.99457027]
[1721030891954,0.00083,63003.0,63002.0,2.07975026]
[1721030892380,0.14203,63003.0,63002.0,1.84146527]
[1721030892499,0.14203,63003.0,63002.0,2.05546527]
[1721030893144,0.14203,63003.0,63002.0,1.85546527]
[1721030893352,0.14203,63003.0,63002.0,0.78405527]
[1721030893554,0.14203,63003.0,63002.0,1.56976027]
[1721030893709,0.14203,63003.0,63002.0,1.58376027]
[1721030893924,0.14203,63003.0,63002.0,1.48376027]
[1721030894125,0.14203,63003.0,63002.0,1.58376027]
[1721030894979,0.14203,63003.0,63002.0,1.48376027]
[1721030895335,0.14203,63003.0,63002.0,1.08376027]
[1721030895514,0.14203,63003.0,63002.0,1.58376027]
[1721030895713,0.14203,63003.0,63002.0,0.79805527]
[1721030895924,0.14203,63003.0,63002.0,1.08376027]
[1721030896633,0.00083,63003.0,63002.0,1.55546527]
[1721030897089,0.00083,63003.0,63002.0,1.36946527]
[1721030897338,0.00083,63003.0,63002.0,1.54146527]
[1721030897689,0.00083,63003.0,63002.0,1.84117027]
[1721030898443,0.00083,63003.0,63002.0,2.08962265]
[1721030898659,0.00083,63003.0,63002.0,2.16502265]
[1721030899054,0.00083,63003.0,63002.0,2.17902265]
[1721030899403,0.00083,63003.0,63002.0,2.16502265]
[1721030899810,0.00083,63003.0,63002.0,2.17902265]
[1721030900015,0.00083,63003.0,63002.0,2.09797027]
[1721030900211,0.00083,63003.0,63002.0,2.14122692]
[1721030901220,0.00083,63003.0,63002.0,2.18315026]
[1721030902048,0.00083,63003.0,63002.0,2.24671326]
[1721030902490,0.00083,63003.0,63002.0,2.61347064]
[1721030902701,0.00083,63003.0,63002.0,2.59947064]
[1721030902873,0.00083,63003.0,63002.0,2.66007064]
[1721030903093,0.00083,63003.0,63002.0,2.6321473]
[1721030903247,0.00083,63003.0,63002.0,2.58889065]
[1721030903454,0.00083,63003.0,63002.0,2.57489065]
[1721030903832,0.00083,63003.0,63002.0,2.58889065]
[1721030904706,0.00083,63003.0,63002.0,2.55109492]
[1721030904913,0.00083,63003.0,63002.0,2.43243827]
[1721030905743,0.00083,63003.0,63002.0,2.37183827]
[1721030905952,0.00083,63003.0,63002.0,2.20042827]
[1721030906159,0.00083,63003.0,63002.0,2.10042827]
[1721030906374,0.00083,63003.0,63002.0,1.70042827]